Workbook

Sheet Instructions
A1: Welcome to the Return on Investment Tool for Instructional Improvement Efforts: Start Here
A2: Version 1.1
A3: Instructions Overview
A4: This tab provides some brief information about the Return on Investment Tool for Instructional Improvement Efforts, including a description of the tool, the intended audience, and how to complete it. For more details, please refer to the overview paper: https://www.acenet.edu/news-room/Documents/Estimating-ROI-Instructional-Improvement-Ithaka.pdf
A6: What is the Return on Investment Tool for Instructional Improvement Efforts?
A7: The ROI tool draws on data and information collected through the empirical literature on the impacts of select instructional improvement efforts, and direct institution-specific inputs by the user, to estimate a range of the potential short- and medium-term ROI that a given institution can expect from a selected effort or reform that is designed and implemented as intended. The tool, and the resultant ROI ranges it produces, are designed to assist institutional administrators in making decisions about whether, or to what extent, to invest in select instructional improvement efforts on their campuses. It aims to achieve this by walking the user through a series of seven systematic steps (see below, as well as Figure 1 in the overview paper). Through each step, the tool gathers institution-specific inputs and provides additional targeted information to the user to promote further thought or information-gathering surrounding specific reform components. The user is able to view all the backend information and formulas included in the tool to understand the data behind the ROI estimates. For more information on the inputs the user needs, please refer to the overview paper, in particular the checklist in Appendix D.
A9: What the tool is not
A10: It is important to note that the ROI tool was not designed to calculate precise ROI figures nor intended to be used as a sole or primary resource for decision-making regarding investing in instructional improvement reforms. The tool focuses on deriving the estimated financial ROI of reforms that aim to improve instructional quality. It includes two specific reforms with pre-filled impact estimates, whose results do not generalize to other instructional improvement efforts, as well as a generic option in which the user estimates an impact. The tool does not provide estimates regarding other types of ROI that may be of equal or greater value to the administrator (e.g., improvements in student or faculty satisfaction and engagement).
A12: Who is the intended audience?
A13: The ROI tool is intended to serve as an additional resource or guide to help administrators gather relevant and useful information regarding the potential impact on student course pass rates and retention and the potential financial ROI of a particular type of instructional reform at a given institution, and consequently to assist in making a decision about whether to invest in such a reform.
A15: How do you complete the tool?
A16: Step 1: Enter Institution Information User enters their institution name and the control of the institution to pre-populate the tool with financial information derived from publicly available data and research findings.
A17: Step 2: Select Instructional Improvement Effort of Interest User selects one of two instructional improvement efforts, to pre-populate the tool with questions and information that are specific to the selected effort of interest, or selects "other," allowing the user to assess an effort not covered by the tool.
A18: Step 3: Enter Institutional Course-Level Information User enters institution-specific information regarding the course(s) impacted by the selected instructional improvement effort.
A19: Step 4: Review Anticipated Post-Effort Course Pass Rates User reviews anticipated post-effort student pass rates in the redesigned course, pre-populated based on empirical findings pertaining to the selected instructional improvement effort.
A20: Step 5: Enter Institutional Financial Information User enters institutional financial information for the target population affected by the selected instructional improvement effort.
A21: Step 6: Enter Effort-Related Costs and Cost Savings User enters one-time and recurring additional costs incurred, and anticipated cost savings, due to the adoption of the selected instructional improvement effort.
A22: Step 7: Select Institution’s Enrollment Strategy User selects one of three enrollment strategies their institution is likely to adopt in response to the estimated increase in student retention generated by the selected instructional improvement effort.
A24: How is the ROI derived?
A25: To calculate the ROI, the tool estimates the additional net revenue a reform will yield, subtracts the additional (financial) cost associated with the effort, and divides by the total additional cost. • additional net revenue = additional net revenue generated by the change in the number of FTE students enrolled and/or retained at the institution plus cost savings realized by the reform. • additional costs = additional initial one-time direct costs and additional average annual recurring costs of implementing the effort. • ROI = [additional net revenue - additional costs] / additional costs
A27: What are the two instructional improvement efforts included in the tool?
A28: Corequisite remediation redesign: This instructional improvement shifts the timing and delivery of remedial or developmental academic support so that it is provided to students simultaneously with college-level coursework (i.e., corequisite), rather than separately as a prerequisite to college-level coursework.
A29: Blended introductory coursework redesign: This instructional improvement effort involves the redesign of large, introductory courses where some portion of traditional, face-to-face delivery is replaced with asynchronous, technology-assisted course delivery that is active, learner-centered, and focused on the mastery of specific learning objectives. Blended courses typically offer 30 to 79 percent of their content online.
A30: Note: Users interested in assessing an effort not fully aligned with the two specific ones described above can select "Other" in the dropdown menu.
A32: Operational settings
A33: Microsoft Windows, with the scale and layout within the display settings of the monitor or laptop set to 100%.

Sheet Inputs
A1: Return on Investment Tool for Instructional Improvement Efforts: Inputs Tab
A3: Steps | C3: Inputs | G3: Instructions and Important Details
A4: Step 1: Enter institution information | C4: What is the name of your institution? | G4: Instructions
C5: Ithaka S+R College | G5: Select your institution's name, or type it as it appears in IPEDS, in cell C5, and select whether it is a public or private institution in cell C7.
C6: Is your institution public or private?
C7: Public
A9: Step 2: Select instructional improvement effort of interest | C9: What instructional improvement effort are you interested in implementing? | G9: Instructions
C10: Corequisite remediation redesign | G10: Select from two specific instructional improvement efforts in cell C10 or, if your effort does not align with these options, select "Other." Selecting one of the specific efforts will automatically populate a general definition of the effort, and common components of the most impactful efforts.
C11: Definition of effort
C12: =IFERROR(VLOOKUP(C10, 'Essential Features & Costs'!A2:F4, 2, FALSE),"") -> This instructional improvement shifts the timing and delivery of remedial or developmental academic support such that it is provided to students simultaneously with college-level coursework (i.e. corequisite), rather than separately as a prerequisite to college-level coursework. | G12: Key effort components
G13: =IFERROR(VLOOKUP(C10, 'Essential Features & Costs'!A2:F4, 3, FALSE),"") -> • Extend instructional time in the college-level course for all students (generally an additonal 20-60 minutes per week) • Require that remedial students attend an additional support lab or workshop (at least 1 hour per week, preferrably staffed by same teacher from college-level course) • Reduce the student-to-instructor ratio in both the class and support lab or workshop (e.g. 20:1 ratio) • Build social support peer networks by increasing student interaction in the course • Emphasize active learning, continuous assessment, and instantaneous feedback
A18: Step 3a: Enter institutional course-level information (pre-redesign) | C18: =IFERROR(VLOOKUP(C10, 'Course Enrollment Questions'!A2:M4, 2, FALSE),"") -> Pre-Requisite Remedial Course Enrollment & Credit Hours | E18: =IFERROR(IF(LEN(VLOOKUP(C10,'Course Enrollment Questions'!A2:M4,3,FALSE))=0,"[intentionally blank]",VLOOKUP(C10,'Course Enrollment Questions'!A2:M4,3,FALSE)),"") -> Subsequent College-Level Course Course Enrollment & Credit Hours | G18: Instructions
C19: =IFERROR(VLOOKUP(C10, 'Course Enrollment Questions'!A2:M4, 4, FALSE),"") -> How many students enroll in the prerequisite course that is being redesigned (all sections)? | E19: =IFERROR(IF(LEN(VLOOKUP(C10,'Course Enrollment Questions'!A2:M4,6,FALSE))=0,"[intentionally blank]",VLOOKUP(C10,'Course Enrollment Questions'!A2:M3,6,FALSE)),"") -> Of the students who enroll in the prerequisite course, how many enroll in the subsequent college-level course within the same academic year? | G19: Provide information regarding student enrollment, credit hours, pass rate, and fall-to-fall retention rates for the relevant course or courses; and regarding instructional activity. Provide average numbers or estimates when relevant. Notes: - The tool assumes that the number of students who will enroll in the post-redesign course is the same as those who enroll in the pre-redesign course. - The questions regarding course enrollment and credit hours under column E are only applicable and can only be viewed if you select corequisite remediation redesign as the instructional reform.
C21: 1000 | E21: 200
C22: =IFERROR(VLOOKUP(C10, 'Course Enrollment Questions'!A2:M4, 5, FALSE),"") -> How many credits does a student earn if they pass the prerequisite course? | E22: =IFERROR(IF(LEN(VLOOKUP(C10,'Course Enrollment Questions'!A2:M4,7,FALSE))=0,"[intentionally blank]",VLOOKUP(C10,'Course Enrollment Questions'!A2:M4,7,FALSE)),"") -> How many credits does a student earn if they pass the college-level course?
C23: 3 | E23: 3
C24: Current Student Pass Rate and Retention Rates | G24: If you select corequisite remediation redesign, provide the following: - The percentage of students who enroll in the prerequisite course and then pass the subsequent college-level course within one academic year. - The fall-to-fall retention rate of students who pass BOTH the prerequisite course and subsequent college-level course within one academic year. - The fall-to-fall retention rate of students who do not pass both courses within one academic year. Note: You will likely need assistance from your IR office to answer these questions. If necessary, provide estimates instead. Fall-to-fall retention rates can be estimated by using the first-year student retention rate as a starting point and projecting differences in retention between students who passed or did not pass the relevant course(s).
C25: =IFERROR(VLOOKUP(C10, 'Course Enrollment Questions'!A2:M4, 8, FALSE),"") -> Of those students who enroll in the prerequisite course, what percentage ultimately pass the college-level course within one academic year?
C26: 0.25
C27: =IFERROR(VLOOKUP(C10, 'Course Enrollment Questions'!A2:M4, 9, FALSE),"") -> What is the fall-to-fall retention rate of students who enroll in the prerequisite course and ultimately pass the college-level course within one academic year?
C28: 0.8
C29: =IFERROR(VLOOKUP(C10, 'Course Enrollment Questions'!A2:M4, 10, FALSE),"") -> What is the fall-to-fall retention rate of students who enroll in the prerequisite course and do not pass the college-level course within one academic year?
C30: 0.5
C31: Instructional Activity | G31: Click here for additional details on determining the level of instructional activity.
C32: =IFERROR(VLOOKUP(C10, 'Course Enrollment Questions'!A2:M4, 11, FALSE),"") -> How many credits in total does a student need to be enrolled in at your institution within one academic year to be considered a full-time equivalent (FTE) undergraduate student?
C33: 30
C34: =IFERROR(VLOOKUP(C10, 'Course Enrollment Questions'!A2:M4, 12, FALSE),"") -> How many credits in total, on average, do undergraduate students at your institution enroll in within one academic year?
C35: 26
A36: Step 3b: Enter institutional course-level information (post-redesign) | C36: Credit Hours: New, Redesigned Course | G36: Answers to questions related to the number of credits that a student will earn if they pass should be somewhere between 1 and 7, with 3 and 4 being the most likely answers.
C37: =IFERROR(VLOOKUP(C10, 'Course Enrollment Questions'!A2:M4, 13, FALSE),"") -> How many credits will a student earn if they pass the redesigned corequisite course?
C38: 5
A40: Step 4: Review anticipated post-effort student course pass rates | C40: Estimated student pass rates for the new, redesigned course | G40: Instructions
C41: Estimated New Student Pass Rate | G41: Review the estimates for the anticipated new student course pass rates as a result of the successful implementation of the instructional improvement effort, based on prior empirical findings.
C42: Lower Bound | E42: Upper Bound
C43: =IFERROR(VLOOKUP(C10,'Research Findings'!A2:G3, 6, FALSE),"") -> 0.57 | E43: =IFERROR(VLOOKUP(C10,'Research Findings'!A2:G3, 7, FALSE),"") -> 0.65 | G43: Click here for more details on how these values were derived.
C44: Number of Additional Students Retained
C45: Lower Bound | E45: Upper Bound
C46: =IFERROR(Formulas!AL5,"") -> 96 | E46: =IFERROR(Formulas!AM5,"") -> 120
C47: User's Anticipated Student Pass Rate [Optional] | G47: Optional: You can add your own estimation to reflect your expectations or existing knowledge regarding implementing this type of effort, or to explore how different changes in pass rates impact the effort's ROI.
C48: 0.5
C49: Number of Additional Students Retained [Optional]
C50: =IF(C48="","", Formulas!AN5) -> 75
A52: Step 5: Enter institutional financial information | C52: Institution-Wide Averages | E52: Target Student Population | G52: Instructions
C53: Net tuition and fees revenue per FTE student in FY16 | E53: Net tuition and fees revenue per FTE student | G53: Replace the institution-wide averages with values for the target student population that would be affected by the effort. If left blank, the tool will use the values under column C.
C54: =IFERROR(VLOOKUP(C5,'Inst Financial Information'!A2:F3976, 4, FALSE),"Data not reported to IPEDS") -> Data not reported to IPEDS | E54: 5500
C55: State and local appropriations per FTE student in FY16 | E55: State and local appropriations per FTE student | G55: This section is populated with three different values, based on data from fiscal year 2016 reported to IPEDS: 1) net tuition and fees revenue, per FTE 2) state and local appropriations, per FTE 3) education and related expenses, per FTE
C56: =IFERROR(VLOOKUP(C5,'Inst Financial Information'!A2:F3976, 5, FALSE),"Data not reported to IPEDS") -> Data not reported to IPEDS | E56: 8500
C57: Education and related expenses per FTE student in FY16 | E57: Education and related expenses per FTE student
C58: =IFERROR(VLOOKUP(C5,'Inst Financial Information'!A2:F3976, 6, FALSE),"Data not reported to IPEDS") -> Data not reported to IPEDS | E58: 15000 | G58: Click here for more details on how these values were derived.
A60: Step 6: Enter effort-related costs and cost savings | C60: Additional initial one-time direct costs | G60: Instructions
C61: =IFERROR(VLOOKUP(C10,'Cost and Enrollment Questions'!A2:D4, 2, FALSE),"") -> What is the additional initial one-time direct cost to your institution, for each of these components, of designing and implementing corequisite remediation? | G61: Answer the three questions in this step about initial and recurring costs, and potential cost savings, related to implementing the effort.
C62: Release time for staff | G62: Common sources of additional initial one-time direct costs
C63: 100000
C64: Professional development | G64: =IFERROR(VLOOKUP(C10,'Essential Features & Costs'!A2:F4,4, FALSE),"") -> • Personnel time for developing and designing course and training materials (e.g. project leads, course specialists and/or instructional designers) • Professional development and training programs for faculty and others supporting the project (e.g. tutors and graduate assistants) • One-time purchase of adaptive learning technology or online platform
C65: 100000
C66: Equipment, including software
C67: 40000
C68: All other initial, one-time direct costs
C69: 35000
C70: Additional average annual recurring costs | G70: Common sources of additional recurring direct costs
C71: =IFERROR(VLOOKUP(C10,'Cost and Enrollment Questions'!A2:D4, 3, FALSE),"") -> What is the additional average annual recurring direct cost to your institution, for each of these components, that would not be otherwise incurred? | G71: =IFERROR(VLOOKUP(C10,'Essential Features & Costs'!A2:F4,5, FALSE),"") -> • Additional personnel time for ongoing support and delivery of the effort (e.g. project leads, course specialists and/or instructional designers who provide new or additional recurring support for corequisite remediation) • Additional academic support services provided to students due to the effort that would not be otherwise provided (e.g. tutoring, advising, boot camps, and mentoring) • Annual maintenance of and/or subscription to technologies that are specific to the effort
C72: Release time for staff
C73: 50000
C74: Professional development
C75: 40000
C76: Equipment, including software | G76: Click here for additional details.
C77: 10000
C78: All other recurring direct costs
C79: 40000
C80: Average recurring annual cost savings | G80: Examples of outcomes that may lead to recurring annual cost savings
C81: =IFERROR(VLOOKUP(C10,'Cost and Enrollment Questions'!A2:D4, 4, FALSE),"") -> What is the average annual dollar amount, for each of these potential cost-saving components, that you anticipate no longer having to spend due to this effort? | G81: =IFERROR(VLOOKUP(C10,'Essential Features & Costs'!A2:F4,6, FALSE),"") -> • Reduction or elimination of prerequisite remedial course sections • Reduction in staff time spent on preparing and offering redesigned courses, compared with time spent prior to the redesign • Reduction in total staff salaries and benefits costs due to changes in staffing brought on by the redesign
C82: Elimination of course sections
C83: 15000
C84: Reduction in release time for staff
C85: 0
C86: Reduction in staff salaries and benefits
C87: 0 | G87: Click here for additional details.
C88: All other cost savings
C89: 20000
A91: Step 7: Select institution's enrollment strategy | C91: Institutional Enrollment Strategy | G91: Instructions
C92: =IFERROR(VLOOKUP(C10, 'Cost and Enrollment Questions'!A2:E4, 5, FALSE),"") -> To the best of your knowledge, how would your institution respond to a 96 to 120 student fall-to-fall retention increase, as a result of the remedial course redesign? | G92: ="Use the dropdown menu in cell C98 to select the answer that best describes how your institution would respond to a "&C46&" to "&E46&" student fall-to-fall increase in retention." -> Use the dropdown menu in cell C98 to select the answer that best describes how your institution would respond to a 96 to 120 student fall-to-fall increase in retention.
G93: • A) By enrolling fewer first-year students to fully offset the increase in the number of students retained, resulting in the same level of overall enrollment expected prior to the implementation of the effort • B) By enrolling the same number of first-year students your institution would have enrolled regardless of the impact of the effort, thereby increasing overall enrollment by the number of students additionally retained • C) By enrolling fewer first-year students but not to completely offset the increase in the number of students retained, resulting in a slight increase in overall enrollment If you select option C, you will be asked an additional question in cell C99.
C96: B | G96: Click here for additional details.
C97: =IF(OR(C96="A",C96="B",C96=""), "[intentionally blank]", "You have indicated that your institution would respond to a "&C46&" to "&E46&" student retention increase by enrolling fewer first-year students but not to completely offset the increase in retention. How many first-year students do you anticipate no longer enrolling because of this retention increase?") -> [intentionally blank]

Sheet Estimated Returns
A1: Return on Investment Tool for Instructional Improvement Efforts: Estimated Returns Tab
A3: Estimated Returns 1, 3, and 5 Years After Implementation | G3: Important Details
A5: 1 Year | C5: 3 Years | E5: 5 Years | G5: Additional net revenue is the sum of the following items: • additional tuition revenue generated by the retention • additional appropriations generated by the retention • cost savings • net revenue change from change in FTE And the subtraction of the following: • additional cost incurred by the retention
A6: Estimated Additional Net Revenue (Lower Bound) | C6: Estimated Additional Cumulative Net Revenue (Lower Bound) | E6: Estimated Additional Cumulative Net Revenue (Lower Bound)
A7: =IFERROR(Formulas!BJ5,"") -> 279533.3333 | C7: =IFERROR(Formulas!BM5,"") -> 838600 | E7: =IFERROR(Formulas!BP5,"") -> 1397666.667
A8: Estimated Additional Net Revenue (Upper Bound) | C8: Estimated Additional Cumulative Net Revenue (Upper Bound) | E8: Estimated Additional Cumulative Net Revenue (Upper Bound)
A9: =IFERROR(Formulas!BK5,"") -> 352333.3333 | C9: =IFERROR(Formulas!BN5,"") -> 1057000 | E9: =IFERROR(Formulas!BQ5,"") -> 1761666.667
A10: Estimated Additional Net Revenue (User-Inputted) | C10: Estimated Additional Cumulative Net Revenue (User-Inputted) | E10: Estimated Additional Cumulative Net Revenue (User-Inputted)
A11: =IFERROR(Formulas!BL5,"") -> 215833.3333 | C11: =IFERROR(Formulas!BO5,"") -> 647500 | E11: =IFERROR(Formulas!BR5,"") -> 1079166.667
A13: Estimated Additional Costs (Lower Bound) | C13: Estimated Additional Cumulative Costs (Lower Bound) | E13: Estimated Additional Cumulative Costs (Lower Bound) | G13: Additional costs is the sum of the following: • additional initial one-time direct costs • additional average annual recurring costs
A14: =IFERROR(Formulas!BS5,"") -> 415000 | C14: =IFERROR(Formulas!BV5,"") -> 695000 | E14: =IFERROR(Formulas!BY5,"") -> 975000
A15: Estimated Additional Costs (Upper Bound) | C15: Estimated Additional Cumulative Costs (Upper Bound) | E15: Estimated Additional Cumulative Costs (Upper Bound)
A16: =IFERROR(Formulas!BT5,"") -> 415000 | C16: =IFERROR(Formulas!BW5,"") -> 695000 | E16: =IFERROR(Formulas!BZ5,"") -> 975000
A17: Estimated Additional Costs (User-Inputted) | C17: Estimated Additional Cumulative Costs (User-Inputted) | E17: Estimated Additional Cumulative Costs (User-Inputted)
A18: =IFERROR(Formulas!BU5,"") -> 415000 | C18: =IFERROR(Formulas!BX5,"") -> 695000 | E18: =IFERROR(Formulas!CA5,"") -> 975000
A20: Estimated ROI (Lower Bound) | C20: Estimated ROI (Lower Bound) | E20: Estimated ROI (Lower Bound) | G20: ROI: [additional net revenue - additional costs] / additional costs
A21: =IFERROR(Formulas!CB5,"") -> -0.3264257028 | C21: =IFERROR(Formulas!CE5,"") -> 0.206618705 | E21: =IFERROR(Formulas!CH5,"") -> 0.4335042735
A22: Estimated ROI (Upper Bound) | C22: Estimated ROI (Upper Bound) | E22: Estimated ROI (Upper Bound)
A23: =IFERROR(Formulas!CC5,"") -> -0.1510040161 | C23: =IFERROR(Formulas!CF5,"") -> 0.5208633094 | E23: =IFERROR(Formulas!CI5,"") -> 0.8068376068
A24: Estimated ROI (User-Inputted) | C24: Estimated ROI (User-Inputted) | E24: Estimated ROI (User-Inputted)
A25: =IFERROR(Formulas!CD5,"") -> -0.4799196787 | C25: =IFERROR(Formulas!CG5,"") -> -0.06834532374 | E25: =IFERROR(Formulas!CJ5,"") -> 0.1068376068

Sheet Formulas
A1: Return on Investment Tool for Instructional Improvement Efforts: Formulas Tab
A3: Instructional Improvement Effort | B3: Control of Institution & Institutional/Target Financial Information | G3: Course Enrollment, Credit Hours, and Student Pass Rates | S3: One-time Direct Costs, Additional Recurring Annual Costs, and Recurring Annual Cost Savings | V3: Enrollment Strategy | W3: Pre-Effort | Z3: Research Findings | AC3: Post-Effort | BG3: Cost Savings | BJ3: Estimated Additional Net Revenue | BS3: Estimated Additional Costs | CB3: Estimated Return on Investment (ROI) | CK3: A
A4: =Inputs!C10 -> Corequisite remediation redesign | B4: =Inputs!C6 -> Is your institution public or private? | C4: Cost of recruiting a single undergraduate | D4: =Inputs!E53 -> Net tuition and fees revenue per FTE student | E4: =Inputs!E55 -> State and local appropriations per FTE student | F4: =Inputs!E57 -> Education and related expenses per FTE student | G4: =Inputs!C19 -> How many students enroll in the prerequisite course that is being redesigned (all sections)? | H4: Assumption: Number of students enrolled in redesigned course is the same | I4: Pre-Effort FTE | J4: Post-Effort FTE | K4: =Inputs!C25 -> Of those students who enroll in the prerequisite course, what percentage ultimately pass the college-level course within one academic year? | L4: =Inputs!C27 -> What is the fall-to-fall retention rate of students who enroll in the prerequisite course and ultimately pass the college-level course within one academic year? | M4: =Inputs!C29 -> What is the fall-to-fall retention rate of students who enroll in the prerequisite course and do not pass the college-level course within one academic year? | N4: Tuition Revenue and Appropriations: Pre-Effort FTE | O4: Education and Related Expenses: Pre-Effort FTE | P4: Tuition Revenue and Appropriations: Post-Effort FTE | Q4: Education and Related Expenses: Post-Effort FTE | R4: Net Revenue Change Generated from Change in FTE | S4: =Inputs!C60 -> Additional initial one-time direct costs | T4: =Inputs!C70 -> Additional average annual recurring costs | U4: =Inputs!C80 -> Average recurring annual cost savings | V4: =Inputs!C91 -> Institutional Enrollment Strategy | W4: Number of students who pass and are retained | X4: Number of students who fail and are retained | Y4: Total number of students who are retained | Z4: New Pass Rate (Lower Bound) | AA4: New Pass Rate (Upper Bound) | AB4: New Pass Rate (User-Inputted) | AC4: New number of students who pass and are retained (Lower Bound) | AD4: New number of students who fail and are retained (Lower Bound) | AE4: New number of students who pass and are retained (Upper Bound) | AF4: New number of students who fail and are retained (Upper Bound) | AG4: New number of students who pass and are retained (User-Inputted) | AH4: New number of students who fail and are retained (User-Inputted) | AI4: Total Number of Students Retained Following Year (Lower Bound) | AJ4: Total Number of Students Retained (Upper Bound) | AK4: Total Number of Students Retained (User-Inputted) | AL4: Additional Number of Students Retained Following Year (Lower Bound) | AM4: Additional Number of Students Retained Following Year (Upper Bound) | AN4: Additional Number of Students Retained Following Year (User-Inputted) | AO4: Additional Number of FTE Students Retained Following Year (Lower Bound) | AP4: Additional Number of FTE Students Retained Following Year (Upper Bound) | AQ4: Additional Number of FTE Students Retained Following Year (User-Inputted) | AR4: Impact of Institutional Strategy: Additional Number of Students Enrolled Following Year (Lower Bound) | AS4: Impact of Institutional Strategy: Additional Number of Students Enrolled Following Year (Upper Bound) | AT4: Impact of Institutional Strategy: Additional Number of Students Enrolled Following Year (User-Inputted) | AU4: Impact of Institutional Strategy: Additional Number of FTE Students Enrolled Following Year (Lower Bound) | AV4: Impact of Institutional Strategy: Additional Number of FTE Students Enrolled Following Year (Upper Bound) | AW4: Impact of Institutional Strategy: Additional Number of FTE Students Enrolled Following Year (User-Inputted) | AX4: Additional Tuition Revenue Generated by that Retention (Lower Bound) | AY4: Additional Tuition Revenue Generated by that Retention (Upper Bound) | AZ4: Additional Tuition Revenue Generated by that Retention (User-Inputted) | BA4: Additional Appropriations Generated by that Retention (Lower Bound) | BB4: Additional Appropriations Generated by that Retention (Upper Bound) | BC4: Additional Appropriations Generated by that Retention (User-Inputted) | BD4: Additional Cost Incurred by that Retention (Lower Bound) | BE4: Additional Cost Incurred by that Retention (Upper Bound) | BF4: Additional Cost Incurred by that Retention (User-Inputted) | BG4: Recurring Annual Cost Savings (Lower Bound) | BH4: Recurring Annual Cost Savings (Upper Bound) | BI4: Recurring Annual Cost Savings (User-Inputted) | BJ4: Estimated Additional Net Revenue After 1 Year (Lower Bound) | BK4: Estimated Additional Net Revenue After 1 Year (Upper Bound) | BL4: Estimated Additional Net Revenue After 1 Year (User-Inputted) | BM4: Estimated Additional Net Revenue After 3 Years (Lower Bound) | BN4: Estimated Additional Net Revenue After 3 Years (Upper Bound) | BO4: Estimated Additional Net Revenue After 3 Years (User-Inputted) | BP4: Estimated Additional Net Revenue After 5 Years (Lower Bound) | BQ4: Estimated Additional Net Revenue After 5 Years (Upper Bound) | BR4: Estimated Additional Net Revenue After 5 Years (User-Inputted) | BS4: Estimated Additional Costs After 1 Year (Lower Bound) | BT4: Estimated Additional Costs After 1 Year (Upper Bound) | BU4: Estimated Additional Costs After 1 Year (User-Inputted) | BV4: Estimated Additional Costs After 3 Years (Lower Bound) | BW4: Estimated Additional Costs After 3 Years (Upper Bound) | BX4: Estimated Additional Costs After 3 Years (User-Inputted) | BY4: Estimated Additional Costs After 5 Years (Lower Bound) | BZ4: Estimated Additional Costs After 5 Years (Upper Bound) | CA4: Estimated Additional Costs After 5 Years (User-Inputted) | CB4: Estimated ROI After 1 Year (Lower Bound) | CC4: Estimated ROI After 1 Year (Upper Bound) | CD4: Estimated ROI After 1 Year (User-Inputted) | CE4: Estimated ROI After 3 Years (Lower Bound) | CF4: Estimated ROI After 3 Years (Upper Bound) | CG4: Estimated ROI After 3 Years (User-Inputted) | CH4: Estimated ROI After 5 Years (Lower Bound) | CI4: Estimated ROI After 5 Years (Upper Bound) | CJ4: Estimated ROI After 5 Years (User-Inputted) | CK4: B
B5: =Inputs!C7 -> Public | C5: =IFERROR(IF(B5="Public", 536, 2357),"") -> 536 | D5: =IF(Inputs!E54="",Inputs!C54,Inputs!E54) -> 5500 | E5: =IF(Inputs!E56="",Inputs!C56,Inputs!E56) -> 8500 | F5: =IF(Inputs!E58="",Inputs!C58,Inputs!E58) -> 15000 | G5: =Inputs!C21 -> 1000 | H5: =G5 -> 1000 | I5: =((Inputs!C21*Inputs!C23)+(Inputs!E21*Inputs!E23))/Inputs!C33 -> 120 | J5: =(Inputs!C38*Inputs!C21)/Inputs!C33 -> 166.6666667 | K5: =Inputs!C26 -> 0.25 | L5: =Inputs!C28 -> 0.8 | M5: =Inputs!C30 -> 0.5 | N5: =(I5*D5)+(I5*E5) -> 1680000 | O5: =I5*F5 -> 1800000 | P5: =(J5*D5)+(J5*E5) -> 2333333.333 | Q5: =J5*F5 -> 2500000 | R5: =(P5-Q5)-(N5-O5) -> -46666.66667 | S5: =SUM(Inputs!C63,Inputs!C65,Inputs!C67,Inputs!C69) -> 275000 | T5: =SUM(Inputs!C73,Inputs!C75,Inputs!C77,Inputs!C79) -> 140000 | U5: =SUM(Inputs!C83,Inputs!C85,Inputs!C87,Inputs!C89) -> 35000 | V5: =Inputs!C96 -> B | W5: =ROUNDDOWN(G5*K5*L5, 0) -> 200 | X5: =ROUNDDOWN(G5*(1-K5)*M5, 0) -> 375 | Y5: =SUM(W5,X5) -> 575 | Z5: =Inputs!C43 -> 0.57 | AA5: =Inputs!E43 -> 0.65 | AB5: =IF(Inputs!C48="","",Inputs!C48) -> 0.5 | AC5: =ROUNDDOWN(G5*Z5*L5, 0) -> 456 | AD5: =ROUNDDOWN(G5*(1-Z5)*M5, 0) -> 215 | AE5: =ROUNDDOWN(G5*AA5*L5, 0) -> 520 | AF5: =ROUNDDOWN(G5*(1-AA5)*M5, 0) -> 175 | AG5: =ROUNDDOWN(G5*AB5*L5, 0) -> 400 | AH5: =ROUNDDOWN(G5*(1-AB5)*M5, 0) -> 250 | AI5: =SUM(AC5,AD5) -> 671 | AJ5: =SUM(AE5,AF5) -> 695 | AK5: =SUM(AG5,AH5) -> 650 | AL5: =AI5-Y5 -> 96 | AM5: =AJ5-Y5 -> 120 | AN5: =IFERROR(AK5-Y5,"") -> 75 | AO5: =(AL5*Inputs!C35)/Inputs!C33 -> 83.2 | AP5: =(AM5*Inputs!C35)/Inputs!C33 -> 104 | AQ5: =IFERROR((AN5*Inputs!C35)/Inputs!C33,"") -> 65 | AR5: =IF(V5="B",AL5, IF(V5="A", 0,AL5-Inputs!C98)) -> 96 | AS5: =IF(V5="B",AM5, IF(V5="A", 0, AM5-Inputs!C98)) -> 120 | AT5: =IFERROR(IF(V5="B",AN5, IF(V5="A", 0, AN5-Inputs!C98)),"") -> 75 | AU5: =(AR5*Inputs!C35)/Inputs!C33 -> 83.2 | AV5: =(AS5*Inputs!C35)/Inputs!C33 -> 104 | AW5: =IFERROR((AT5*Inputs!C35)/Inputs!C33,"") -> 65 | AX5: =AU5*D5 -> 457600 | AY5: =AV5*D5 -> 572000 | AZ5: =IFERROR(AW5*D5,"") -> 357500 | BA5: =AU5*E5 -> 707200 | BB5: =AV5*E5 -> 884000 | BC5: =IFERROR(AW5*E5,"") -> 552500 | BD5: =F5*AU5*0.7 -> 873600 | BE5: =F5*AV5*0.7 -> 1092000 | BF5: =IFERROR(F5*AW5*0.7,"") -> 682500 | BG5: =IF(V5="A",U5+(AL5*C5),IF(V5="B",U5,(U5+(Inputs!C98*C5)))) -> 35000 | BH5: =IF(V5="A",U5+(AM5*C5),IF(V5="B",U5,(U5+(Inputs!C98*C5)))) -> 35000 | BI5: =IF(V5="A",U5+(AN5*C5),IF(V5="B",U5,(U5+(Inputs!C98*C5)))) -> 35000 | BJ5: =AX5+BA5+BG5+R5-BD5 -> 279533.3333 | BK5: =AY5+BB5+BH5+R5-BE5 -> 352333.3333 | BL5: =IFERROR(AZ5+BC5+BI5+R5-BF5,"") -> 215833.3333 | BM5: =((AX5+BA5+BG5+R5-BD5)*3) -> 838600 | BN5: =((AY5+BB5+BH5+R5-BE5)*3) -> 1057000 | BO5: =IFERROR(((AZ5+BC5+BI5+R5-BF5)*3),"") -> 647500 | BP5: =((AX5+BA5+BG5+R5-BD5)*5) -> 1397666.667 | BQ5: =((AY5+BB5+BH5+R5-BE5)*5) -> 1761666.667 | BR5: =IFERROR(((AZ5+BC5+BI5+R5-BF5)*5),"") -> 1079166.667 | BS5: =S5+T5 -> 415000 | BT5: =S5+T5 -> 415000 | BU5: =IFERROR(S5+T5,"") -> 415000 | BV5: =(T5*3)+S5 -> 695000 | BW5: =(T5*3)+S5 -> 695000 | BX5: =IFERROR((T5*3)+S5,"") -> 695000 | BY5: =(T5*5)+S5 -> 975000 | BZ5: =(T5*5)+S5 -> 975000 | CA5: =IFERROR((T5*5)+S5,"") -> 975000 | CB5: =(BJ5-BS5)/BS5 -> -0.3264257028 | CC5: -0.1510040161 | CD5: =IFERROR((BL5-BU5)/BU5,"") -> -0.4799196787 | CE5: 0.206618705 | CF5: 0.5208633094 | CG5: =IFERROR((BO5-BX5)/BX5,"") -> -0.06834532374 | CH5: 0.4335042735 | CI5: 0.8068376068 | CJ5: =IFERROR((BR5-CA5)/CA5,"") -> 0.1068376068 | CK5: C

Sheet Additional Details
A1: Return on Investment Tool for Instructional Improvement Efforts: Additional Details Tab
A3: Steps | C3: Additional Details
A4: Step 3 | C4: Determining the level of instructional activity: Typically, students at 4-year institutions using a semester calendar, the level of instructional activity indicating full-time equivalency for undergraduate students is 30 credit hours over one academic year; at 4-year institutions using a quarter calendar, it is 45 credit hours.
C5: Click here to return to where you were previously.
A7: Step 4 | C7: Estimating the anticipated new student course pass rates: These values are the lower and upper bounds of a 50 percent confidence interval of a regression comparing the pre- and post- pass rates we've compiled from the most relevant and robust research studies in the field. These estimates are also based, in part, on the value entered in cell C28 of step 3, which is the percentage of students who pass the course that you are considering redesigning (or, in the case of corequisite remedial redesign, the percentage of students who pass both the prerequisite course and subsequent college-level course). As such, please ensure that value is entered. For more information about the studies, including links to them, and a more technical explanation of the method we used, please consult the overview paper.
C8: Click here to return to where you were previously.
A10: Step 5 | C10: Calculating institutional financial information: All finance-related measures are collected from the IPEDS 2015-16 Finance Survey, which represents the 2016 fiscal year. The remaining measure, 12-month full-time equivalent (FTE) enrollment, which includes undergraduates, graduates, and doctoral professional students, is collected from the IPEDS 2015-16 12-month Enrollment Survey. Net tuition and fees revenue per FTE = (tuition and fees after deducting discounts and allowances - all institutional grants) / 12-month FTE enrollment State and local appropriations per FTE = (state appropriations + local appropriations) / 12-month FTE enrollment Education and related expenses per FTE (as defined by the Delta Cost Project) = (instruction + student services + (education_share*(academic support + institution support + operation/maintenance) / 12-month FTE enrollment education_share=(instruction + student services)/(instruction + student services + research + public service) Please consult your budget/IR office if you are unable to provide values for the student population that would be affected by the reform.
C11: Click here to return to where you were previously.
A13: Step 6 | C13: Initial and recurring costs: Please note that these are initial and recurring costs associated with the reform that the institution would not otherwise incur. E.g., if your institution's annual cost of $20,000 for offering prerequisite remediation is expected to grow to $50,000 under corequisite remediation, then your institution's additional recurring cost is $30,000.
C14: Click here to return where you were previously.
C16: Cost savings: It's important to note that these cost savings do not include and are independent of savings that might come from improved student outcomes, like increased course pass rates.
C17: Click here to return to where you were previously.
A19: Step 7 | C19: Institutional enrollment strategy: The return on investment estimates produced by this tool are driven largely by changes in student retention due to an instructional improvement effort, and returns associated with resultant institutional revenue. As a consequence, your institution's enrollment strategy in response to changes in student retention plays an important role in the tool's estimation.
C20: Click here to return to where you were previously.

Sheet Course Enrollment Questions (hidden)
A1: Improvement Effort Options | B1: Category 1 | C1: Category 2 | D1: Question 1 | E1: Question 2 | F1: Question 3 | G1: Question 4 | H1: Question 5 | I1: Question 6 | J1: Question 7 | K1: Question 8 | L1: Question 9 | M1: Question 10
A2: Corequisite remediation redesign | B2: Pre-Requisite Remedial Course Enrollment & Credit Hours | C2: Subsequent College-Level Course Course Enrollment & Credit Hours | D2: How many students enroll in the prerequisite course that is being redesigned (all sections)? | E2: How many credits does a student earn if they pass the prerequisite course? | F2: Of the students who enroll in the prerequisite course, how many enroll in the subsequent college-level course within the same academic year? | G2: How many credits does a student earn if they pass the college-level course? | H2: Of those students who enroll in the prerequisite course, what percentage ultimately pass the college-level course within one academic year? | I2: What is the fall-to-fall retention rate of students who enroll in the prerequisite course and ultimately pass the college-level course within one academic year? | J2: What is the fall-to-fall retention rate of students who enroll in the prerequisite course and do not pass the college-level course within one academic year? | K2: How many credits in total does a student need to be enrolled in at your institution within one academic year to be considered a full-time equivalent (FTE) undergraduate student? | L2: How many credits in total, on average, do undergraduate students at your institution enroll in within one academic year? | M2: How many credits will a student earn if they pass the redesigned corequisite course?
A3: Blended introductory coursework redesign | B3: Blended Introductory Course Enrollment & Credit Hours | D3: How many students enroll in the introductory course that is being redesigned (all sections)? | E3: How many credits does a student earn if they pass the introductory course? | H3: What is the average student pass rate of the introductory course? | I3: What is the fall-to-fall retention rate of students who pass the introductory course? | J3: What is the fall-to-fall retention rate of students who DON'T pass the introductory course? | K3: How many credits in total does a student need to be enrolled in at your institution within one academic year to be considered a full-time equivalent (FTE) undergraduate student? | L3: How many credits in total, on average, do undergraduate students at your institution enroll in within one academic year? | M3: How many credits will a student earn if they pass the redesigned introductory course?
A4: Other | B4: Course Enrollment & Credit Hours | D4: How many students enroll in the course that is being redesigned (all sections)? | E4: How many credits does a student earn if they pass the course? | H4: What is the average student pass rate of the course that is being redesigned? | I4: What is the fall-to-fall retention rate of students who pass the course? | J4: What is the fall-to-fall retention rate of students who DON'T pass the course? | K4: How many credits in total does a student need to be enrolled in at your institution within one academic year to be considered a full-time equivalent (FTE) undergraduate student? | L4: How many credits in total, on average, do undergraduate students at your institution enroll in within one academic year? | M4: How many credits will a student earn if they pass the redesigned course?

Sheet Cost and Enrollment Questions (hidden)
A1: Improvement Effort Options | B1: Question 1 | C1: Question 2 | D1: Question 3 | E1: Question 4
A2: Corequisite remediation redesign | B2: What is the additional initial one-time direct cost to your institution, for each of these components, of designing and implementing corequisite remediation? | C2: What is the additional average annual recurring direct cost to your institution, for each of these components, that would not be otherwise incurred? | D2: What is the average annual dollar amount, for each of these potential cost-saving components, that you anticipate no longer having to spend due to this effort? | E2: ="To the best of your knowledge, how would your institution respond to a "&Inputs!C46&" to "&Inputs!E46&" student fall-to-fall retention increase, as a result of the remedial course redesign?" -> To the best of your knowledge, how would your institution respond to a 96 to 120 student fall-to-fall retention increase, as a result of the remedial course redesign?
A3: Blended introductory coursework redesign | B3: What is the additional initial one-time direct cost to your institution, for each of these components, of designing and implementing blended introductory coursework? | C3: What is the additional average annual recurring direct cost to your institution, for each of these components, that would not be otherwise incurred? | D3: What is the average annual dollar amount, for each of these potential cost-saving components, that you anticipate no longer having to spend due to this effort? | E3: ="To the best of your knowledge, how would your institution respond to a "&Inputs!C46&" to "&Inputs!E46&" student fall-to-fall retention increase, as a result of the blended introductory coursework redesign?" -> To the best of your knowledge, how would your institution respond to a 96 to 120 student fall-to-fall retention increase, as a result of the blended introductory coursework redesign?
A4: Other | B4: What is the additional initial one-time direct cost to your institution, for each of these components, of designing and implementing the effort of interest? | C4: What is the additional average annual recurring direct cost to your institution, for each of these components, that would not be otherwise incurred? | D4: What is the average annual dollar amount, for each of these potential cost-saving components, that you anticipate no longer having to spend due to this effort? | E4: ="To the best of your knowledge, how would your institution respond to a "&Inputs!E50&" student fall-to-fall retention increase, as a result of implementing the effort of interest?" -> To the best of your knowledge, how would your institution respond to a student fall-to-fall retention increase, as a result of implementing the effort of interest?

Sheet Essential Features & Costs (hidden)
A1: Improvement Effort Options | B1: Definition | C1: Key Components | D1: Initial One-Time Direct Costs | E1: Additional Direct Recurring Annual Costs | F1: Cost Savings | G1: Wordss | H1: Schools | I1: Letter | J1: C
A2: Corequisite remediation redesign | B2: This instructional improvement shifts the timing and delivery of remedial or developmental academic support such that it is provided to students simultaneously with college-level coursework (i.e. corequisite), rather than separately as a prerequisite to college-level coursework. | C2: • Extend instructional time in the college-level course for all students (generally an additonal 20-60 minutes per week) • Require that remedial students attend an additional support lab or workshop (at least 1 hour per week, preferrably staffed by same teacher from college-level course) • Reduce the student-to-instructor ratio in both the class and support lab or workshop (e.g. 20:1 ratio) • Build social support peer networks by increasing student interaction in the course • Emphasize active learning, continuous assessment, and instantaneous feedback | D2: • Personnel time for developing and designing course and training materials (e.g. project leads, course specialists and/or instructional designers) • Professional development and training programs for faculty and others supporting the project (e.g. tutors and graduate assistants) • One-time purchase of adaptive learning technology or online platform | E2: • Additional personnel time for ongoing support and delivery of the effort (e.g. project leads, course specialists and/or instructional designers who provide new or additional recurring support for corequisite remediation) • Additional academic support services provided to students due to the effort that would not be otherwise provided (e.g. tutoring, advising, boot camps, and mentoring) • Annual maintenance of and/or subscription to technologies that are specific to the effort | F2: • Reduction or elimination of prerequisite remedial course sections • Reduction in staff time spent on preparing and offering redesigned courses, compared with time spent prior to the redesign • Reduction in total staff salaries and benefits costs due to changes in staffing brought on by the redesign | J2: Public
A3: Blended introductory coursework redesign | B3: This instructional improvement efforts involves a redesign of large, introductory traditional courses where some portion of the face-to-face course delivery is replaced with asynchronous, technology-assisted course delivery that is active, learner-centered and focused on the mastery of specific learning objectives. Hybrid, also known as blended, courses generally offer 30-79% of their content online. | C3: • Shift from summative assessment to formative assessment through the use of regular, online, low-stake assessments and quizzes • Online tutorials and practice exercises, enabling students to regularly check for their own understanding • On-demand, personalized support through online or computer lab sessions with teaching assistants • Increased student interaction through active learning, made possible by having students access course content out of the classroom | D3: • Personnel time for developing and designing course and training materials (e.g. project leads, course specialists and/or instructional designers) • One-time purchase of learning management systems, like MyMathLab, Blackboard, and Sakai, which would house video lectures, online tutorials, and built-in quizzes | E3: • Faculty professional development modules, to assist with course redesign and instruct faculty on online learning pedagogy best practices. | F3: • May reduce need for classroom space, since part of the course is delivered online, leading to reduction in facilities costs • Multiple sections are often consolidated into one or a few large classes, significantly reducing faculty salary costs. Lectures also meet fewer times per week (usually reduced from 3x per week to 1x per week), reducing the number of faculty needed to teach the course. • Automated assessments reduces the time needed for faculty to prepare and grade tests. • Having undergraduate learning assistants teach lab sessions as opposed to graduate teaching assistants improves students’ learning outcomes and helps to save on labor costs. | J3: Private
A4: Other | B4: [Intentionally blank] | C4: [Intentionally blank] | D4: [Intentionally blank] | E4: [Intentionally blank] | F4: [Intentionally blank]

Sheet Research Findings (hidden)
A1: Improvement Effort Options | B1: Constant | C1: Coefficient 50% CI (Lower Bound) | D1: Coefficient 50% CI (Upper Bound) | E1: Original Course Pass Rate | F1: New Course Pass Rate (Lower Bound) | G1: New Course Pass Rate (Upper Bound)
A2: Corequisite remediation redesign | B2: 0.5863246 | C2: -0.0585514 | D2: 0.2647726 | E2: =Inputs!C26 -> 0.25 | F2: =ROUND((B2+(C2*E2)),2) -> 0.57 | G2: =ROUND((B2+(D2*E2)),2) -> 0.65
A3: Blended introductory coursework redesign | B3: 0.3036541 | C3: 0.6411601 | D3: 0.7851687 | E3: =Inputs!C26 -> 0.25 | F3: =ROUND((B3+(C3*E3)),2) -> 0.46 | G3: =ROUND(B3+(D3*E3),2) -> 0.5

Sheet Inst Financial Information (hidden)
A1: IPEDS Institution Name | B1: 2016 Control | C1: Total 12-month FTE student enrollment 2015-16 | D1: Net tuition and fees revenue FY 2016 | E1: Revenue from state and local appropriations FY 2016 | F1: Education and related expenses FY 2016
A2: A T Still University of Health Sciences | B2: Private | C2: 3506 | D2: $32361 | E2: $0 | F2: $38759
A3: AIB College of Business | B3: Private | D3: Data not reported to IPEDS | E3: Data not reported to IPEDS | F3: Data not reported to IPEDS
A4: AMERICAN ISLAMIC COLLEGE | B4: Private | C4: 35 | D4: $-4875 | E4: $0 | F4: $51011
A5: AVTEC-Alaska's Institute of Technology | B5: Public | C5: 295 | D5: $3938 | E5: $18551 | F5: $32218
A6: Aaniiih Nakoda College | B6: Public | C6: 141 | D6: $303 | E6: $375 | F6: $30597
A7: Abilene Christian University | B7: Private | C7: 4282 | D7: $2161 | E7: $0 | F7: $26122
A8: Abington Memorial Hospital Dixon School of Nursing | B8: Private | C8: 225 | D8: $3477 | E8: $0 | F8: $26722
A9: Abraham Baldwin Agricultural College | B9: Public | C9: 2817 | D9: $3469 | E9: $5308 | F9: $11873
A10: Academy for Careers and Technology | B10: Public | C10: 32 | D10: $6316 | E10: $42626 | F10: $42498
A11: Academy for Five Element Acupuncture | B11: Private | C11: 67 | D11: $15946 | E11: $0 | F11: $16971
A12: Academy for Jewish Religion-California | B12: Private | C12: 64 | D12: $14834 | E12: $0 | F12: $26822
A13: Academy for Nursing and Health Occupations | B13: Private | C13: 489 | D13: $2771 | E13: $0 | F13: $7596
A14: Academy of Careers and Technology | B14: Public | C14: 170 | D14: $1230 | E14: $0 | F14: $3397
A15: Academy of Chinese Culture and Health Sciences | B15: Private | C15: 193 | D15: $7761 | E15: $0 | F15: $12487
A16: Academy of Interactive Entertainment | B16: Private | C16: 100 | D16: $15740 | E16: $0 | F16: $16022
A17: Academy of Interactive Entertainment | B17: Private | C17: 59 | D17: $15307 | E17: $0 | F17: $17063
A18: Academy of Vocal Arts | B18: Private | C18: 27 | D18: $-9415 | E18: $0 | F18: $145778
A19: Acupuncture and Integrative Medicine College-Berkeley | B19: Private | C19: 216 | D19: $6773 | E19: $0 | F19: $9620
A20: Adams State University | B20: Public | C20: 2835 | D20: $4573 | E20: $0 | F20: $16429
A21: Adelphi University | B21: Private | C21: 6753 | D21: $15735 | E21: $100 | F21: $26980
A22: Adirondack Community College | B22: Public | C22: 2759 | D22: $2478 | E22: $5121 | F22: $13269
A23: Adler Graduate School | B23: Private | C23: 190 | D23: $17394 | E23: $0 | F23: $20089
A24: Adler University | B24: Private | C24: 1138 | D24: $29291 | E24: $0 | F24: $41124
A25: Adrian College | B25: Private | C25: 1643 | D25: $-3728 | E25: $0 | F25: $27104
A26: Adult and Community Education-Hudson | B26: Public | C26: 185 | D26: $1222 | E26: $0 | F26: $7987
A27: Adult and Continuing Education-BCTS | B27: Public | C27: 140 | D27: $3379 | E27: $0 | F27: $11035
A28: Advanced Technical Centers | B28: Private | C28: 21 | D28: $0 | E28: $0 | F28: $14385
A29: Adventist University of Health Sciences | B29: Private | C29: 1633 | D29: $14208 | E29: $0 | F29: $19287
A30: Agnes Scott College | B30: Private | C30: 912 | D30: $-10108 | E30: $0 | F30: $53150
A31: Aiken Technical College | B31: Public | C31: 1690 | D31: $3011 | E31: $3660 | F31: $11688
A32: Aims Community College | B32: Public | C32: 3356 | D32: $2789 | E32: $22383 | F32: $17981
A33: Air Force Institute of Technology-Graduate School of Engineering & Management | B33: Public | C33: 879 | D33: Data not reported to IPEDS | E33: Data not reported to IPEDS | F33: Data not reported to IPEDS
A34: Akron School of Practical Nursing | B34: Public | C34: 40 | D34: $9022 | E34: $9142 | F34: $26921
A35: Alabama A & M University | B35: Public | C35: 4805 | D35: $6511 | E35: $8433 | F35: $15371
A36: Alabama College of Osteopathic Medicine | B36: Private | C36: 471 | D36: $46204 | E36: $0 | F36: $35516
A37: Alabama Southern Community College | B37: Public | C37: 1088 | D37: $616 | E37: $7541 | F37: $13090
A38: Alabama State University | B38: Public | C38: 5185 | D38: $5747 | E38: $8158 | F38: $20407
A39: Alamance Community College | B39: Public | C39: 3467 | D39: $1304 | E39: $5610 | F39: $8372
A40: Alamo Community College District Central Office | B40: Public | D40: Data not reported to IPEDS | E40: Data not reported to IPEDS | F40: Data not reported to IPEDS
A41: Alaska Bible College | B41: Private | C41: 26 | D41: $8695 | E41: $0 | F41: $32135
A42: Alaska Christian College | B42: Private | C42: 69 | D42: $5728 | E42: $0 | F42: $27499
A43: Alaska Pacific University | B43: Private | C43: 404 | D43: $8389 | E43: $0 | F43: $31654
A44: Albany BOCES-Adult Practical Nursing Program | B44: Public | C44: 163 | D44: $6920 | E44: $0 | F44: $11527
A45: Albany College of Pharmacy and Health Sciences | B45: Private | C45: 1556 | D45: $17754 | E45: $114 | F45: $26016
A46: Albany Law School | B46: Private | C46: 416 | D46: $6571 | E46: $84 | F46: $46250
A47: Albany Medical College | B47: Private | C47: 813 | D47: $40170 | E47: $0 | F47: $243731
A48: Albany State University | B48: Public | C48: 3043 | D48: $4259 | E48: $6403 | F48: $15074
A49: Albany Technical College | B49: Public | C49: 3059 | D49: $1905 | E49: $3674 | F49: $9863
A50: Albert I Prince Technical High School | B50: Public | C50: 64 | D50: $1703 | E50: $15830 | F50: $19873
A51: Albertus Magnus College | B51: Private | C51: 1751 | D51: $7673 | E51: $0 | F51: $15486
A52: Albion College | B52: Private | C52: 1389 | D52: $-7215 | E52: $0 | F52: $53776
A53: Albright College | B53: Private | C53: 2213 | D53: $-2659 | E53: $0 | F53: $22206
A54: Alcorn State University | B54: Public | C54: 3081 | D54: $483 | E54: $9992 | F54: $13965
A55: Alderson Broaddus University | B55: Private | C55: 1214 | D55: $-623 | E55: $0 | F55: $18078
A56: Alexandria Technical & Community College | B56: Public | C56: 1993 | D56: $3787 | E56: $5674 | F56: $12387
A57: Alfred University | B57: Private | C57: 2399 | D57: $-2599 | E57: $0 | F57: $24814
A58: Alice Lloyd College | B58: Private | C58: 543 | D58: $3354 | E58: $0 | F58: $19845
A59: Allan Hancock College | B59: Public | C59: 6744 | D59: $464 | E59: $9411 | F59: $10664
A60: Allegany College of Maryland | B60: Public | C60: 2022 | D60: $1188 | E60: $7621 | F60: $16984
A61: Allegheny College | B61: Private | C61: 1848 | D61: $-3793 | E61: $0 | F61: $41253
A62: Allegheny Wesleyan College | B62: Private | C62: 49 | D62: $4731 | E62: $0 | F62: $10212
A63: Allen College | B63: Private | C63: 510 | D63: $17736 | E63: $0 | F63: $16563
A64: Allen County Community College | B64: Public | C64: 1630 | D64: $1422 | E64: $5343 | F64: $6816
A65: Allen University | B65: Private | C65: 660 | D65: $9285 | E65: $0 | F65: $22104
A66: Alma College | B66: Private | C66: 1540 | D66: $-3019 | E66: $0 | F66: $28865
A67: Alpena Community College | B67: Public | C67: 995 | D67: $3354 | E67: $8997 | F67: $16922
A68: Altierus Career College Everett | B68: Private | C68: 403 | D68: $6604 | E68: $0 | F68: $9811
A69: Altierus Career College-Arlington | B69: Private | C69: 533 | D69: $6126 | E69: $0 | F69: $10394
A70: Altierus Career College-Atlanta West | B70: Private | C70: 526 | D70: $8275 | E70: $0 | F70: $10980
A71: Altierus Career College-Austin | B71: Private | C71: 474 | D71: $8975 | E71: $0 | F71: $13720
A72: Altierus Career College-Bissonnet | B72: Private | C72: 886 | D72: $6358 | E72: $0 | F72: $7585
A73: Altierus Career College-Chesapeake | B73: Private | C73: 397 | D73: $7288 | E73: $0 | F73: $12919
A74: Altierus Career College-Colorado Springs | B74: Private | C74: 257 | D74: $8121 | E74: $0 | F74: $13635
A75: Altierus Career College-Columbus | B75: Private | C75: 243 | D75: $9183 | E75: $0 | F75: $14840
A76: Altierus Career College-Fort Worth South | B76: Private | C76: 563 | D76: $7443 | E76: $0 | F76: $8448
A77: Altierus Career College-Henderson | B77: Private | C77: 491 | D77: $10524 | E77: $0 | F77: $14433
A78: Altierus Career College-Houston Hobby | B78: Private | C78: 619 | D78: $6658 | E78: $0 | F78: $7157
A79: Altierus Career College-Norcross | B79: Private | C79: 406 | D79: $8474 | E79: $0 | F79: $10879
A80: Altierus Career College-Orange Park | B80: Private | C80: 613 | D80: $6513 | E80: $0 | F80: $9183
A81: Altierus Career College-San Antonio | B81: Private | C81: 398 | D81: $6711 | E81: $0 | F81: $14068
A82: Altierus Career College-Tacoma | B82: Private | C82: 651 | D82: $7049 | E82: $0 | F82: $10595
A83: Altierus Career College-Tampa | B83: Private | C83: 394 | D83: $10155 | E83: $0 | F83: $17118
A84: Altierus Career College-Thornton | B84: Private | C84: 298 | D84: $7498 | E84: $0 | F84: $12571
A85: Altierus Career College-Tigard | B85: Private | C85: 349 | D85: $6381 | E85: $0 | F85: $8810
A86: Altierus Career College-Woodbridge | B86: Private | C86: 435 | D86: $8576 | E86: $0 | F86: $12157
A87: Altierus Career Education-South Plainfield | B87: Private | C87: 512 | D87: $6692 | E87: $0 | F87: $9977
A88: Altierus Career Education-Southfield | B88: Private | C88: 872 | D88: $6308 | E88: $0 | F88: $8422
A89: Alvernia University | B89: Private | C89: 2495 | D89: $10843 | E89: $0 | F89: $21317
A90: Alverno College | B90: Private | C90: 1689 | D90: $11611 | E90: $0 | F90: $23934
A91: Alvin Community College | B91: Public | C91: 3866 | D91: $2267 | E91: $6502 | F91: $8631
A92: Amarillo College | B92: Public | C92: 5916 | D92: $2057 | E92: $7025 | F92: $12470
A93: Amberton University | B93: Private | C93: 1140 | D93: $5239 | E93: $0 | F93: $4735
A94: American Academy McAllister Institute of Funeral Service | B94: Private | C94: 374 | D94: $12727 | E94: $0 | F94: $17939
A95: American Academy of Art | B95: Private | C95: 260 | D95: $29065 | E95: $733 | F95: $13682
A96: American Academy of Dramatic Arts-Los Angeles | B96: Private | C96: 338 | D96: $16652 | E96: $0 | F96: $28001
A97: American Academy of Dramatic Arts-New York | B97: Private | C97: 290 | D97: $19262 | E97: $0 | F97: $41655
A98: American Baptist College | B98: Private | C98: 109 | D98: $13453 | E98: $0 | F98: $30801
A99: American Baptist Seminary of the West | B99: Private | C99: 39 | D99: $5351 | E99: $0 | F99: $59292
A100: American College of Financial Services | B100: Private | C100: 3150 | D100: $9120 | E100: $0 | F100: $12301
A101: American College of Traditional Chinese Medicine | B101: Private | D101: Data not reported to IPEDS | E101: Data not reported to IPEDS | F101: Data not reported to IPEDS
A102: American Conservatory Theater | B102: Private | C102: 81 | D102: $23071 | E102: $4439 | F102: $77314
A103: American Film Institute Conservatory | B103: Private | C103: 336 | D103: $30947 | E103: $0 | F103: $16657
A104: American Indian College Inc | B104: Private | D104: Data not reported to IPEDS | E104: Data not reported to IPEDS | F104: Data not reported to IPEDS
A105: American Indian OIC Inc | B105: Private | C105: 72 | D105: $2689 | E105: $1649 | F105: $12196
A106: American International College | B106: Private | C106: 2867 | D106: $3797 | E106: $0 | F106: $17630
A107: American Jewish University | B107: Private | C107: 187 | D107: $3986 | E107: $0 | F107: $65710
A108: American Musical and Dramatic Academy | B108: Private | C108: 1829 | D108: $19559 | E108: $0 | F108: $25674
A109: American River College | B109: Public | C109: 19477 | D109: $528 | E109: $5514 | F109: $7321
A110: American University | B110: Private | C110: 12330 | D110: $21766 | E110: $0 | F110: $29750
A111: Amherst College | B111: Private | C111: 1914 | D111: $-3837 | E111: $0 | F111: $80737
A112: Amridge University | B112: Private | C112: 413 | D112: $14953 | E112: $0 | F112: $19193
A113: Anabaptist Mennonite Biblical Seminary | B113: Private | C113: 60 | D113: $990 | E113: $0 | F113: $66526
A114: Ancilla College | B114: Private | C114: 308 | D114: $6589 | E114: $0 | F114: $23669
A115: Anderson University | B115: Private | C115: 2121 | D115: $2968 | E115: $0 | F115: $21575
A116: Anderson University | B116: Private | C116: 2910 | D116: $5835 | E116: $0 | F116: $14247
A117: Andover Newton Theological School | B117: Private | C117: 149 | D117: $2178 | E117: $0 | F117: $37237
A118: Andrew College | B118: Private | C118: 304 | D118: $-549 | E118: $0 | F118: $23921
A119: Andrews University | B119: Private | C119: 2815 | D119: $4513 | E119: $0 | F119: $25187
A120: Angelina College | B120: Public | C120: 3225 | D120: $1631 | E120: $5022 | F120: $8616
A121: Angelo State University | B121: Public | C121: 6703 | D121: $3608 | E121: $5044 | F121: $12561
A122: Anna Maria College | B122: Private | C122: 1205 | D122: $3240 | E122: $0 | F122: $16731
A123: Anne Arundel Community College | B123: Public | C123: 8603 | D123: $3353 | E123: $7834 | F123: $15387
A124: Annenberg School of Nursing | B124: Private | C124: 25 | D124: $6725 | E124: $0 | F124: $27252
A125: Anoka Technical College | B125: Public | C125: 1387 | D125: $2926 | E125: $6078 | F125: $12932
A126: Anoka-Ramsey Community College | B126: Public | C126: 5683 | D126: $3206 | E126: $3585 | F126: $10159
A127: Antelope Valley College | B127: Public | C127: 9150 | D127: $114 | E127: $6864 | F127: $8045
A128: Antioch College | B128: Private | C128: 266 | D128: $-31440 | E128: $0 | F128: $63324
A129: Antioch University Online | B129: Private | C129: 107 | D129: Data not reported to IPEDS | E129: Data not reported to IPEDS | F129: Data not reported to IPEDS
A130: Antioch University-Los Angeles | B130: Private | C130: 774 | D130: Data not reported to IPEDS | E130: Data not reported to IPEDS | F130: Data not reported to IPEDS
A131: Antioch University-Midwest | B131: Private | C131: 117 | D131: Data not reported to IPEDS | E131: Data not reported to IPEDS | F131: Data not reported to IPEDS
A132: Antioch University-New England | B132: Private | C132: 586 | D132: Data not reported to IPEDS | E132: Data not reported to IPEDS | F132: Data not reported to IPEDS
A133: Antioch University-PhD Program in Leadership and Change | B133: Private | C133: 113 | D133: Data not reported to IPEDS | E133: Data not reported to IPEDS | F133: Data not reported to IPEDS
A134: Antioch University-Santa Barbara | B134: Private | C134: 411 | D134: Data not reported to IPEDS | E134: Data not reported to IPEDS | F134: Data not reported to IPEDS
A135: Antioch University-Seattle | B135: Private | C135: 477 | D135: Data not reported to IPEDS | E135: Data not reported to IPEDS | F135: Data not reported to IPEDS
A136: Antioch University-System Administration | B136: Private | D136: Data not reported to IPEDS | E136: Data not reported to IPEDS | F136: Data not reported to IPEDS
A137: Aparicio-Levy Technical College | B137: Public | C137: 23 | D137: $3506 | E137: $0 | F137: $32780
A138: Apex School of Theology | B138: Private | C138: 958 | D138: $3819 | E138: $0 | F138: $4325
A139: Apollo Career Center | B139: Public | C139: 284 | D139: $4791 | E139: $1386 | F139: $11847
A140: Appalachian Bible College | B140: Private | C140: 238 | D140: $3322 | E140: $0 | F140: $20293
A141: Appalachian College of Pharmacy | B141: Private | C141: 202 | D141: $35821 | E141: $0 | F141: $39678
A142: Appalachian School of Law | B142: Private | C142: 112 | D142: $911 | E142: $0 | F142: $52579
A143: Appalachian State University | B143: Public | C143: 17895 | D143: $5166 | E143: $7475 | F143: $13151
A144: Applied Technology Services | B144: Public | C144: 169 | D144: $5828 | E144: $2778 | F144: $10088
A145: Aquinas College | B145: Private | C145: 1611 | D145: $-98 | E145: $0 | F145: $20257
A146: Aquinas College | B146: Private | C146: 310 | D146: $8016 | E146: $0 | F146: $33079
A147: Aquinas Institute of Theology | B147: Private | C147: 73 | D147: $15677 | E147: $0 | F147: $30512
A148: Arapahoe Community College | B148: Public | C148: 5100 | D148: $5626 | E148: $0 | F148: $7975
A149: Arcadia University | B149: Private | C149: 3808 | D149: $5755 | E149: $0 | F149: $22098
A150: Aria Health School of Nursing | B150: Private | C150: 108 | D150: $28650 | E150: $0 | F150: $40397
A151: Arizona Board of Regents | B151: Public | D151: Data not reported to IPEDS | E151: Data not reported to IPEDS | F151: Data not reported to IPEDS
A152: Arizona Christian University | B152: Private | C152: 637 | D152: $-521 | E152: $0 | F152: $19729
A153: Arizona State University-Downtown Phoenix | B153: Public | C153: 10799 | D153: Data not reported to IPEDS | E153: Data not reported to IPEDS | F153: Data not reported to IPEDS
A154: Arizona State University-Polytechnic | B154: Public | C154: 3864 | D154: Data not reported to IPEDS | E154: Data not reported to IPEDS | F154: Data not reported to IPEDS
A155: Arizona State University-Skysong | B155: Public | C155: 17294 | D155: Data not reported to IPEDS | E155: Data not reported to IPEDS | F155: Data not reported to IPEDS
A156: Arizona State University-Tempe | B156: Public | C156: 50653 | D156: $16210 | E156: $5555 | F156: $24754
A157: Arizona State University-West | B157: Public | C157: 3333 | D157: Data not reported to IPEDS | E157: Data not reported to IPEDS | F157: Data not reported to IPEDS
A158: Arizona Western College | B158: Public | C158: 5312 | D158: $421 | E158: $7246 | F158: $10594
A159: Arkansas Baptist College | B159: Private | C159: 891 | D159: $9315 | E159: $0 | F159: $13656
A160: Arkansas Colleges of Health Education | B160: Private | D160: Data not reported to IPEDS | E160: Data not reported to IPEDS | F160: Data not reported to IPEDS
A161: Arkansas Northeastern College | B161: Public | C161: 917 | D161: $820 | E161: $11810 | F161: $19549
A162: Arkansas State University Mid-South | B162: Public | C162: 1069 | D162: $1716 | E162: $9715 | F162: $15121
A163: Arkansas State University-Beebe | B163: Public | C163: 2899 | D163: $1426 | E163: $5415 | F163: $8964
A164: Arkansas State University-Main Campus | B164: Public | C164: 12451 | D164: $2149 | E164: $5286 | F164: $9637
A165: Arkansas State University-Mountain Home | B165: Public | C165: 1088 | D165: $690 | E165: $5751 | F165: $13223
A166: Arkansas State University-Newport | B166: Public | C166: 1888 | D166: $1942 | E166: $4584 | F166: $8288
A167: Arkansas State University-System Office | B167: Public | D167: Data not reported to IPEDS | E167: Data not reported to IPEDS | F167: Data not reported to IPEDS
A168: Arkansas Tech University | B168: Public | C168: 9180 | D168: $2197 | E168: $3896 | F168: $8701
A169: Arlington Baptist University | B169: Private | C169: 186 | D169: $9665 | E169: $0 | F169: $18104
A170: Armstrong State University | B170: Public | C170: 6271 | D170: $5482 | E170: $4771 | F170: $11337
A171: Arnot Ogden Medical Center | B171: Private | C171: 57 | D171: $8067 | E171: $0 | F171: $14876
A172: Art Academy of Cincinnati | B172: Private | C172: 188 | D172: $17590 | E172: $0 | F172: $38588
A173: Art Center College of Design | B173: Private | C173: 2463 | D173: $24473 | E173: $0 | F173: $38583
A174: Asbury Theological Seminary | B174: Private | C174: 1035 | D174: $3004 | E174: $0 | F174: $24597
A175: Asbury University | B175: Private | C175: 1615 | D175: $5511 | E175: $0 | F175: $20262
A176: Asheville-Buncombe Technical Community College | B176: Public | C176: 5791 | D176: $1246 | E176: $5744 | F176: $9955
A177: Ashland Community and Technical College | B177: Public | C177: 2023 | D177: $-1357 | E177: $3726 | F177: $10665
A178: Ashland County-West Holmes Career Center | B178: Public | C178: 51 | D178: $10824 | E178: $7886 | F178: $15030
A179: Ashland University | B179: Private | C179: 4751 | D179: $8562 | E179: $0 | F179: $17433
A180: Ashtabula County Technical and Career Campus | B180: Public | C180: 90 | D180: $5814 | E180: $0 | F180: $24275
A181: Asnuntuck Community College | B181: Public | C181: 987 | D181: $3106 | E181: $12678 | F181: $20848
A182: Assabet Valley Regional Technical School | B182: Public | C182: 51 | D182: $10816 | E182: $0 | F182: $16510
A183: Associated Beth Rivkah Schools | B183: Private | C183: 145 | D183: $6603 | E183: $0 | F183: $10202
A184: Assumption College | B184: Private | C184: 2625 | D184: $1506 | E184: $0 | F184: $20357
A185: Assumption College for Sisters | B185: Private | C185: 26 | D185: $-3408 | E185: $0 | F185: $24404
A186: Athenaeum of Ohio | B186: Private | C186: 115 | D186: $908 | E186: $0 | F186: $48721
A187: Athens State University | B187: Public | C187: 2331 | D187: $5761 | E187: $5097 | F187: $13255
A188: Athens Technical College | B188: Public | C188: 2604 | D188: $2723 | E188: $4559 | F188: $11252
A189: Atlanta Metropolitan State College | B189: Public | C189: 2242 | D189: $1471 | E189: $4631 | F189: $12639
A190: Atlanta Technical College | B190: Public | C190: 3357 | D190: $1425 | E190: $3880 | F190: $10303
A191: Atlantic Cape Community College | B191: Public | C191: 4417 | D191: $2600 | E191: $3291 | F191: $9333
A192: Atlantic Institute of Oriental Medicine | B192: Private | C192: 472 | D192: $5585 | E192: $0 | F192: $6511
A193: Atlantic Technical College | B193: Public | C193: 1404 | D193: $2697 | E193: $13893 | F193: $21930
A194: Auburn Career Center | B194: Public | C194: 230 | D194: $4188 | E194: $0 | F194: $12461
A195: Auburn University | B195: Public | C195: 25761 | D195: $10685 | E195: $8745 | F195: $15416
A196: Auburn University at Montgomery | B196: Public | C196: 3959 | D196: $6495 | E196: $5753 | F196: $13771
A197: Augsburg University | B197: Private | C197: 3027 | D197: $5869 | E197: $0 | F197: $22877
A198: Augusta Technical College | B198: Public | C198: 3321 | D198: $1651 | E198: $4163 | F198: $10407
A199: Augusta University | B199: Public | C199: 7780 | D199: $9247 | E199: $25073 | F199: $38085
A200: Augustana College | B200: Private | C200: 2491 | D200: $-1738 | E200: $0 | F200: $26054
... 3776 more rows
